bitfinex/quotes_SOLUSD_20241202
["timestamp","ask_amount","ask_price","bid_price","bid_amount"]
[1733098821036,23.776884,235.94,235.78,0.84557085]
[1733098821233,23.776884,235.92,235.75,0.84586306]
[1733098821433,20.0,235.89,235.75,0.84586306]
[1733098821847,0.67953434,235.88,235.75,0.84586306]
[1733098822448,0.67953434,235.91,235.75,12.53850662]
[1733098822757,0.67953434,235.94,235.75,0.84586306]
[1733098822955,0.67953434,235.94,235.77,11.69264356]
[1733098823133,0.72226706,235.96,235.82,11.69264356]
[1733098823463,0.04273272,235.96,235.83,0.8455745]
[1733098824332,0.04273272,235.96,235.78,12.53823252]
[1733098824845,23.81961672,235.96,235.78,0.84558896]
[1733098825035,23.776884,235.94,235.76,0.84583748]
[1733098825233,20.0,235.89,235.73,0.84588056]
[1733098825437,20.0,235.89,235.7,11.69264356]
[1733098825438,6.0623,235.87,235.7,11.69264356]
[1733098825733,20.0,235.82,235.7,0.84596004]
[1733098825954,16.3162,235.83,235.71,11.69264356]
[1733098826134,16.3162,235.83,235.72,12.53861494]
[1733098827137,6.0623,235.87,235.74,11.69264356]
[1733098827138,20.0,235.84,235.74,11.69264356]
[1733098827330,20.0,235.84,235.75,0.84585764]
[1733098827953,0.67953434,235.83,235.7,0.84599298]
[1733098828157,20.0,235.84,235.7,0.84599298]
[1733098828832,0.67953434,235.83,235.7,0.84599298]
[1733098829056,20.0,235.84,235.71,19.50421547]
[1733098829360,20.0,235.84,235.72,18.65816808]
[1733098829564,20.0,235.84,235.73,0.84590247]
[1733098829934,0.67953434,235.83,235.68,12.73]
[1733098830149,0.67953434,235.83,235.69,0.84612081]
[1733098830367,0.67953434,235.83,235.68,12.73]
[1733098830654,0.67953434,235.83,235.69,19.50435467]
[1733098830858,20.0,235.84,235.7,31.38816808]
[1733098831039,20.0,235.84,235.71,0.84597409]
[1733098831353,20.0,235.84,235.72,31.38816808]
[1733098831561,20.0,235.84,235.73,0.84596639]
[1733098831766,20.0,235.84,235.74,12.73]
[1733098832062,6.0623,235.87,235.76,31.38816808]
[1733098832237,15.2136,235.9,235.78,12.73]
[1733098832436,15.2136,235.9,235.8,12.73]
[1733098832657,0.04273272,235.96,235.82,31.38816808]
[1733098832868,0.04273272,235.96,235.84,12.73]
[1733098833030,0.04273272,235.96,235.85,0.84557951]
[1733098834035,0.04273272,235.96,235.86,0.84555273]
[1733098834270,0.04273272,235.96,235.83,12.73]
[1733098834271,0.04273272,235.96,235.84,0.84555403]
[1733098834946,0.04273272,235.96,235.84,13.57555403]
[1733098835131,0.04273272,235.96,235.84,32.23372211]
[1733098835459,0.04273272,235.96,235.86,12.73]
[1733098835661,0.04273272,235.96,235.87,0.84544414]
[1733098836460,20.0,235.94,235.86,0.84547896]
[1733098837857,0.04273272,235.96,235.87,18.65816808]
[1733098838032,0.04273272,235.96,235.89,31.38816808]
[1733098838237,0.04273272,235.96,235.8,23.65816808]
[1733098838238,0.04273272,235.96,235.92,12.73]
[1733098838460,0.02273272,235.96,235.93,0.84527649]
[1733098839036,0.02273272,235.96,235.92,12.73]
[1733098839251,0.02273272,235.96,235.9,0.84529896]
[1733098839768,0.02273272,235.96,235.86,12.73]
[1733098839947,0.02273272,235.96,235.89,0.84532757]
[1733098840258,0.02273272,235.96,235.92,31.38816808]
[1733098840448,0.02273272,235.96,235.93,0.84520647]
[1733098840648,0.02273272,235.96,235.94,18.8128]
[1733098840861,0.02273272,235.96,235.95,32.23334278]
[1733098841240,0.02273272,235.96,235.95,13.5751747]
[1733098841641,0.00273272,235.96,235.95,13.5751747]
[1733098841849,0.00273272,235.96,235.95,32.23334278]
[1733098842047,0.00273272,235.96,235.95,13.5751747]
[1733098842957,0.00273272,235.96,235.92,12.73]
[1733098843256,0.00273272,235.96,235.88,6.1152]
[1733098843464,0.00273272,235.96,235.87,0.84531114]
[1733098843959,20.00273272,235.96,235.85,0.84548664]
[1733098845767,20.00273272,235.96,235.86,0.84557194]
[1733098845938,20.00273272,235.96,235.84,19.50373791]
[1733098846138,20.00273272,235.96,235.84,13.57556983]
[1733098847044,20.00273272,235.96,235.84,0.84556983]
[1733098847243,20.00273272,235.96,235.85,0.84559666]
[1733098847463,0.67953434,235.95,235.83,0.84560122]
[1733098848363,0.67953434,235.95,235.81,0.84565248]
[1733098848751,20.00273272,235.96,235.85,12.73]
[1733098848952,0.00273272,235.96,235.89,18.65816808]
[1733098849266,0.00273272,235.96,235.9,0.84535519]
[1733098849669,16.0839,235.99,235.9,0.84535519]
[1733098852672,20.0,236.03,235.9,0.84535519]
[1733098854268,1.17075784,236.02,235.9,0.84535519]
[1733098855269,1.17075784,236.02,235.89,12.73]
[1733098855474,1.17075784,236.02,235.89,13.57545424]
[1733098855674,1.17075784,236.02,235.89,0.84545424]
[1733098855882,1.17075784,236.02,235.87,0.84543805]
[1733098856175,20.0,235.98,235.83,0.84546354]
[1733098856378,0.67953434,235.97,235.84,36.506884]
[1733098856557,0.67953434,235.97,235.84,12.73]
[1733098856558,16.0018,235.96,235.84,12.73]
[1733098856874,0.67953434,235.95,235.82,0.84555765]
[1733098857377,20.0,235.93,235.82,0.84555765]
[1733098860482,20.0,235.93,235.83,12.73]
[1733098860679,20.0,235.93,235.84,0.84559929]
[1733098861181,16.0018,235.96,235.87,12.73]
[1733098861355,16.0018,235.96,235.88,0.84546745]
[1733098864278,16.0566,236.01,235.93,12.73]
[1733098864462,16.0566,236.01,235.94,32.23341247]
[1733098864772,16.0566,236.07,235.98,18.65816808]
[1733098864983,0.67953434,236.18,236.01,18.65816808]
[1733098865159,16.5358,236.14,236.01,0.84494273]
[1733098865364,0.67953434,236.13,235.96,0.84497493]
[1733098865553,0.67953434,236.13,235.96,18.65816808]
[1733098865758,0.67953434,236.13,235.97,19.50328348]
[1733098865967,0.67953434,236.13,235.99,18.65816808]
[1733098866167,17.21533434,236.14,236.0,19.50320382]
[1733098866349,17.21533434,236.14,236.0,32.23320382]
[1733098867266,17.21533434,236.14,236.01,12.73]
[1733098867451,17.21533434,236.14,235.99,13.57497367]
[1733098867851,17.21533434,236.14,235.99,32.23314175]
[1733098868101,17.20655784,236.14,236.0,31.38816808]
[1733098868261,17.20655784,236.14,236.01,0.84493992]
[1733098868462,17.20655784,236.14,236.01,19.503108]
[1733098869176,17.20655784,236.14,236.01,0.84493992]
[1733098869373,17.20655784,236.14,235.99,18.65816808]
[1733098869374,17.20655784,236.14,235.98,12.73]
[1733098869675,20.0,236.11,235.99,0.84505477]
[1733098870062,20.0,236.11,236.0,31.38816808]
[1733098870262,20.0,236.11,236.01,19.50312384]
[1733098870569,16.5270235,236.14,236.03,18.65816808]
[1733098870767,16.5270235,236.14,236.04,0.84488774]
[1733098871969,20.0,236.11,236.0,18.65816808]
[1733098872159,20.0,236.11,235.99,12.73]
[1733098872658,0.67953434,236.1,235.95,19.50323492]
[1733098873177,0.67953434,236.1,235.96,18.65816808]
[1733098873558,0.67953434,236.1,235.92,19.50333745]
[1733098873962,0.67953434,236.1,235.94,18.65816808]
[1733098874152,0.67953434,236.1,235.97,18.65816808]
[1733098874353,16.5270235,236.14,236.02,12.73]
[1733098874587,16.5270235,236.14,236.03,19.50306165]
[1733098875261,16.5270235,236.14,236.03,0.84489357]
[1733098875772,20.0,236.11,235.99,19.50307291]
[1733098875979,0.67953434,236.1,235.99,0.84490483]
[1733098876279,0.67953434,236.1,235.92,12.73]
[1733098876959,0.67953434,236.1,235.93,0.84526674]
[1733098877159,0.67953434,236.1,235.93,32.23343482]
[1733098877366,0.67953434,236.1,235.93,13.57526674]
[1733098877764,0.67953434,236.1,235.93,0.84526674]
[1733098877977,20.0,236.06,235.91,12.73]
[1733098878179,0.67953434,236.05,235.91,12.73]
[1733098878362,6.0322,236.04,235.91,12.73]
[1733098878563,6.0322,236.04,235.9,0.84525658]
[1733098878564,0.67953434,236.03,235.9,0.84525658]
[1733098879183,0.67953434,236.03,235.91,23.776884]
[1733098879367,20.0,236.01,235.91,23.776884]
[1733098879567,0.67953434,236.0,235.87,0.84537219]
[1733098880262,15.1782,235.99,235.84,0.84548187]
[1733098880468,20.0,235.96,235.84,0.84548187]
[1733098880970,20.0,235.96,235.8,19.5037521]
[1733098880971,0.67953434,235.95,235.8,19.5037521]
[1733098881189,0.67953434,235.95,235.81,18.65816808]
[1733098881489,0.67953434,235.95,235.82,0.84563296]
[1733098882194,0.67953434,235.95,235.8,23.776884]
[1733098882695,0.67953434,235.95,235.8,24.62258658]
[1733098883671,0.67953434,235.95,235.8,43.28075466]
[1733098883869,20.0,235.96,235.82,18.65816808]
[1733098884076,20.0,235.96,235.83,19.50375207]
[1733098884275,20.0,235.96,235.84,23.776884]
[1733098884595,0.67953434,235.95,235.82,23.776884]
[1733098884969,0.67953434,235.95,235.83,0.8456675]
[1733098885496,20.0,235.96,235.84,23.776884]
[1733098885694,0.67953434,235.95,235.85,0.84560163]
[1733098885995,20.0,235.96,235.85,19.50376971]
[1733098886293,15.1782,235.99,235.89,18.65816808]
[1733098886596,15.1782,235.99,235.9,0.84541261]
[1733098886995,15.1782,235.99,235.9,19.50358069]
[1733098887296,6.0322,236.04,235.95,42.43505208]
[1733098887490,6.71173434,236.04,235.9,19.50331825]
[1733098887694,6.71173434,236.04,235.91,23.776884]
[1733098888481,6.0322,236.04,235.93,42.43505208]
[1733098888696,15.7943,236.05,235.95,23.776884]
[1733098888993,15.7943,236.05,235.97,23.776884]
[1733098889192,15.7943,236.05,235.98,0.84509064]
[1733098891189,21.5456,236.1,235.99,23.776884]
[1733098891493,20.0,236.07,235.99,23.776884]
[1733098891888,20.0,236.07,236.0,0.84503945]
[1733098892893,20.0,236.11,236.0,0.84503945]
[1733098893081,20.0,236.1,236.0,0.84503945]
[1733098894499,16.4948,236.13,236.01,36.506884]
[1733098894813,16.4948,236.13,236.03,36.506884]
[1733098895015,16.4948,236.13,236.05,23.776884]
[1733098895188,16.4948,236.13,236.06,0.84482899]
[1733098895877,6.5797,236.2,236.07,23.776884]
[1733098896114,0.67953434,236.19,236.08,0.84478598]
[1733098896275,0.67953434,236.19,236.09,36.506884]
[1733098896482,6.5797,236.2,236.11,23.776884]
[1733098898078,7.25923434,236.2,236.1,0.84475459]
[1733098898277,20.0,236.17,236.07,0.84471576]
[1733098898603,20.0,236.17,236.08,23.776884]
[1733098898785,20.0,236.23,236.09,0.84471875]
[1733098899094,0.67953434,236.22,236.09,0.84471875]
[1733098899698,0.67953434,236.22,236.09,13.57471875]
[1733098900803,0.67953434,236.22,236.04,13.57473554]
[1733098901102,0.67953434,236.22,236.03,6.566]
[1733098901103,36.2869,236.14,236.0,0.84485369]
[1733098901404,0.67953434,236.13,235.98,6.6362]
[1733098901587,0.67953434,236.13,235.99,0.84496985]
[1733098901905,0.67953434,236.13,235.99,13.57496985]
[1733098902676,0.67953434,236.13,236.02,12.73]
[1733098903604,0.67953434,236.13,235.99,36.506884]
[1733098904707,0.67953434,236.13,235.97,23.776884]
[1733098905201,0.67953434,236.13,235.98,0.84508531]
[1733098905398,0.67953434,236.13,235.99,23.776884]
[1733098906311,0.67953434,236.13,235.98,23.776884]
[1733098906473,0.67953434,236.13,236.0,23.776884]
[1733098906679,0.67953434,236.13,236.01,0.84499814]
[1733098907903,0.67953434,236.13,235.95,23.776884]
[1733098908404,43.776884,236.12,235.94,0.84500148]
[1733098908604,0.67953434,236.11,235.92,0.84524965]
[1733098908803,20.67953434,236.11,235.92,0.84524965]
[1733098909009,20.67953434,236.11,235.92,13.57524965]
[1733098909187,20.0,236.09,235.92,13.57524965]
[1733098909399,0.67953434,236.08,235.92,13.57524965]
[1733098910082,22.2048,236.07,235.93,23.776884]
[1733098910292,20.0,236.04,235.9,0.84531529]
[1733098910500,0.67953434,236.03,235.88,0.84543094]
[1733098910702,0.67953434,236.03,235.89,18.65816808]
[1733098910906,0.67953434,236.03,235.9,0.84536176]
[1733098911080,0.67953434,236.03,235.87,0.84544173]
[1733098912404,0.67953434,236.03,235.87,19.50360981]
[1733098912981,0.67953434,236.03,235.88,23.776884]
[1733098913182,0.67953434,236.03,235.9,23.776884]
[1733098913404,0.67953434,236.03,235.91,0.84538864]
[1733098913619,0.67953434,236.03,235.89,23.776884]
[1733098914812,16.1927,236.02,235.88,0.8454304]
[1733098915119,16.1927,236.02,235.85,18.65816808]
[1733098915120,20.0,235.99,235.86,0.84543943]
[1733098915425,20.0,235.99,235.86,32.23360751]
[1733098916292,20.0,235.99,235.87,42.43505208]
[1733098916498,20.0,235.99,235.89,23.776884]
[1733098916703,20.0,235.99,235.9,0.84545537]
[1733098916999,20.0,235.99,235.89,23.776884]
[1733098917200,20.0,235.99,235.9,0.84545679]
[1733098918409,20.0,235.99,235.88,23.776884]
[1733098919019,20.0,235.99,235.9,23.776884]
[1733098920500,0.67953434,235.98,235.9,23.776884]
[1733098920723,0.67953434,235.98,235.84,0.84546045]
[1733098921023,0.67953434,235.98,235.82,0.84566684]
[1733098921598,20.0,235.9,235.74,22.25376076]
[1733098921805,0.67953434,235.89,235.75,0.84584685]
[1733098922011,0.67953434,235.89,235.72,0.84589839]
[1733098922213,20.0,235.85,235.72,0.84589839]
[1733098922590,20.0,235.85,235.72,13.57589839]
[1733098923204,20.0,235.85,235.73,36.506884]
[1733098923405,20.0,235.85,235.73,23.776884]
[1733098923608,20.0,235.85,235.71,13.57595805]
[1733098924700,20.0,235.85,235.71,19.50802534]
[1733098925304,20.0,235.85,235.72,23.776884]
[1733098926206,20.0,235.85,235.74,23.776884]
[1733098927220,16.5227,235.88,235.78,18.66206729]
[1733098927423,16.5227,235.88,235.8,23.776884]
[1733098927606,16.5227,235.88,235.82,23.776884]
[1733098927922,6.1034,235.93,235.84,23.776884]
[1733098928095,6.1034,235.93,235.86,23.776884]
[1733098928302,16.4355,235.94,235.88,23.776884]
[1733098928499,16.4355,235.94,235.9,23.776884]
[1733098929423,0.67953434,235.93,235.9,23.776884]
[1733098929804,20.0,235.91,235.9,23.776884]
[1733098930819,16.4355,235.94,235.9,23.776884]
[1733098931403,20.0,235.91,235.77,0.84571993]
[1733098931603,0.67953434,235.9,235.73,30.11289779]
[1733098932009,0.67953434,235.9,235.73,0.8458305]
[1733098932335,0.67953434,235.9,235.73,32.23789779]
[1733098933132,0.67953434,235.9,235.74,23.776884]
[1733098933302,0.67953434,235.9,235.76,23.776884]
[1733098933503,20.0,235.86,235.7,18.66206729]
[1733098933703,0.67953434,235.85,235.71,0.84601366]
[1733098934502,0.67953434,235.85,235.72,18.66206729]
[1733098934709,20.0,235.86,235.74,55.16895129]
[1733098934933,20.0,235.86,235.76,23.776884]
[1733098935118,20.0,235.86,235.78,23.776884]
[1733098936426,20.0,235.86,235.76,23.776884]
[1733098936634,0.67953434,235.85,235.74,23.776884]
[1733098936834,0.67953434,235.85,235.72,23.776884]
[1733098937016,15.2634,235.84,235.71,0.84594109]
[1733098937325,15.2634,235.84,235.73,0.84610028]
[1733098937625,15.2634,235.84,235.73,13.57610028]
[1733098938223,15.2634,235.84,235.74,23.776884]
[1733098938422,15.2634,235.84,235.76,23.776884]
[1733098938929,15.2634,235.84,235.75,0.84597282]
[1733098938930,6.5884,235.89,235.81,23.776884]
[1733098939129,6.5884,235.89,235.82,13.57570568]
[1733098939300,6.5884,235.89,235.83,23.776884]
[1733098939506,15.2634,235.9,235.83,23.776884]
[1733098939925,15.2634,235.9,235.85,23.776884]
[1733098941118,6.2734,235.94,235.87,23.776884]
[1733098942207,15.4811,235.96,235.87,0.8455833]
[1733098942403,15.4811,235.96,235.88,36.506884]
[1733098942647,15.4811,235.96,235.9,23.776884]
[1733098943609,15.4811,235.96,235.9,36.506884]
[1733098943809,16.0255,236.02,235.94,23.776884]
[1733098944017,6.1965,236.06,235.94,23.776884]
[1733098944018,6.1965,236.06,235.96,31.39206729]
[1733098944338,15.558,236.07,235.98,55.16895129]
[1733098944544,0.67953434,236.12,236.0,23.776884]
[1733098945616,21.7145,236.13,236.0,23.776884]
[1733098945617,15.2573,236.13,236.05,23.776884]
[1733098945937,15.2573,236.13,236.07,23.776884]
[1733098946531,15.2573,236.13,236.09,23.776884]
[1733098946841,0.05901825,236.15,236.09,23.776884]
[1733098948226,20.05901825,236.15,236.09,23.776884]
[1733098948931,0.67953434,236.14,236.09,23.776884]
[1733098949639,20.05901825,236.15,236.09,23.776884]
[1733098951131,0.05901825,236.15,236.09,23.776884]
[1733098952417,20.05901825,236.15,236.09,23.776884]
[1733098953119,0.67953434,236.14,236.09,23.776884]
[1733098953314,20.05901825,236.15,236.09,23.776884]
[1733098953732,0.05901825,236.15,236.09,23.776884]
[1733098953942,20.05901825,236.15,236.09,23.776884]
[1733098954741,20.05901825,236.15,236.12,0.02688887]
[1733098955553,0.67953434,236.14,236.12,0.02688887]
[1733098957661,20.05901825,236.15,236.12,0.02688887]
[1733098958924,0.05901825,236.15,236.12,0.02688887]
[1733098959530,0.05901825,236.15,236.13,23.776884]
[1733098959735,0.05901825,236.15,236.14,36.476884]
[1733098960628,0.05901825,236.15,236.13,23.776884]
[1733098961129,0.05901825,236.15,236.14,36.476884]
[1733098963951,0.05901825,236.15,236.14,23.776884]
[1733098964629,0.05901825,236.15,236.12,0.02688887]
[1733098966226,0.05901825,236.15,236.12,0.8716203]
[1733098966421,0.05901825,236.15,236.13,23.776884]
[1733098966723,0.05901825,236.15,236.12,12.49953144]
[1733098966724,0.05901825,236.15,236.14,24.6214451]
[1733098966948,0.05901825,236.15,236.14,23.776884]
[1733098967328,0.05901825,236.15,236.12,23.80377287]
[1733098967647,0.05901825,236.15,236.12,0.02688887]
[1733098975065,20.05901825,236.15,236.12,0.02688887]
[1733098975243,0.67953434,236.14,236.12,0.02688887]
[1733098977139,16.61653434,236.14,236.12,0.02688887]
[1733098978762,23.776884,236.13,236.12,0.02688887]
[1733098980443,23.776884,236.13,235.91,11.62791114]
[1733098980644,20.0,236.1,235.9,34.73495627]
[1733098980973,20.67953434,236.09,235.9,35.80704513]
[1733098981144,20.0,236.07,235.9,35.80704513]
[1733098981338,0.67953434,236.06,235.9,35.80704513]
[1733098981851,0.67953434,236.06,235.9,46.58971114]
[1733098982052,0.67953434,236.08,235.9,46.58971114]
[1733098982445,0.67953434,236.08,235.91,11.62791114]
[1733098982653,0.67953434,236.08,235.95,11.62791114]
[1733098982855,0.67953434,236.12,235.99,11.62791114]
[1733098983163,0.67953434,236.12,236.0,0.8451182]
[1733098983965,0.67953434,236.13,236.0,0.8451182]
[1733098984339,15.937,236.14,236.03,35.40479514]
[1733098984569,15.937,236.14,236.04,0.84494049]
[1733098986849,0.67953434,236.13,236.04,0.84494049]
[1733098987052,0.67953434,236.13,236.02,0.84496683]
[1733098987361,15.937,236.14,236.02,0.84496683]
[1733098987568,15.937,236.14,236.03,11.62791114]
[1733098987771,15.937,236.14,236.04,0.84491806]
[1733098988970,0.67953434,236.13,236.04,0.84491806]
[1733098989150,0.67953434,236.13,236.01,46.908784]
[1733098989346,20.0,236.11,235.96,6.1713]
[1733098989566,0.67953434,236.1,235.96,6.1713]
[1733098989747,0.67953434,236.1,235.91,6.1713]
[1733098989945,20.0,236.06,235.91,6.1713]
[1733098990243,0.67953434,236.05,235.91,6.1713]
[1733098990672,15.3575,236.04,235.86,11.62791114]
[1733098990876,0.67953434,236.03,235.87,0.84548493]
[1733098991175,0.67953434,236.03,235.87,12.47339607]
[1733098991345,0.67953434,236.03,235.89,11.62791114]
[1733098991548,0.67953434,236.03,235.9,12.4733576]
[1733098991971,20.67953434,236.08,235.94,11.62791114]
[1733098992158,20.0,236.06,235.95,0.84521128]
[1733098992549,0.67953434,236.05,235.93,11.62791114]
[1733098992778,0.67953434,236.05,235.89,23.776884]
[1733098992951,0.67953434,236.05,235.88,0.84547388]
[1733098993152,0.67953434,236.05,235.88,32.47338502]
[1733098993567,0.67953434,236.05,235.88,12.47338502]
[1733098994078,0.67953434,236.05,235.89,11.62791114]
[1733098994253,0.67953434,236.05,235.9,0.84542562]
[1733098995075,0.67953434,236.05,235.91,23.776884]
[1733098995256,0.67953434,236.05,235.92,0.84535032]
[1733098995456,0.67953434,236.05,235.92,12.47326146]
[1733098995653,0.67953434,236.05,235.92,0.84535032]
[1733098995877,0.67953434,236.08,235.97,23.776884]
[1733098996179,16.3341,236.09,235.99,35.40479514]
[1733098996386,16.3341,236.09,236.0,0.84505119]
[1733098998775,16.3341,236.09,235.98,23.776884]
[1733098999184,16.3341,236.09,235.97,23.776884]
[1733098999358,16.3341,236.09,235.96,38.22071849]
[1733098999359,16.3341,236.09,235.99,23.776884]
[1733098999987,16.3341,236.09,236.0,0.84507925]
[1733099000361,16.3341,236.09,235.98,23.776884]
[1733099000555,0.67953434,236.08,235.98,23.776884]
[1733099000776,16.3341,236.09,235.99,0.84515175]
[1733099001087,16.3341,236.09,236.0,23.776884]
[1733099001383,20.0,236.12,236.02,42.39374504]
[1733099001682,20.0,236.12,236.04,23.776884]
[1733099001981,0.67953434,236.11,236.0,23.776884]
[1733099002182,20.0,236.12,236.01,0.84504793]
[1733099002485,20.0,236.12,236.02,23.776884]
[1733099003064,0.67953434,236.11,236.02,23.776884]
[1733099003265,0.67953434,236.11,235.99,23.776884]
[1733099003468,0.67953434,236.11,235.97,18.61686104]
[1733099003790,0.67953434,236.11,235.98,24.62200921]
[1733099004385,0.67953434,236.11,235.91,25.09196104]
[1733099004679,20.67953434,236.11,235.91,7.32040361]
[1733099005280,20.67953434,236.11,235.91,20.02040361]
[1733099005469,20.67953434,236.11,235.9,12.7]
[1733099005470,20.0,236.05,235.9,12.7]
[1733099005679,0.67953434,236.04,235.9,12.7]
[1733099006191,0.67953434,236.04,235.91,0.8454368]
[1733099006796,0.67953434,236.04,235.89,13.54542841]
[1733099007562,0.67953434,236.04,235.9,36.476884]
[1733099008761,0.67953434,236.04,235.92,23.776884]
[1733099009281,0.67953434,236.04,235.93,0.84538974]
[1733099009483,0.67953434,236.07,235.96,42.39374504]
[1733099009684,0.67953434,236.07,235.96,23.776884]
[1733099009980,0.67953434,236.07,235.97,0.84525563]
[1733099010284,0.67953434,236.07,235.98,23.776884]
[1733099010489,0.67953434,236.07,235.96,23.776884]
[1733099011284,20.0,236.05,235.93,23.776884]
[1733099011578,20.0,236.05,235.95,23.776884]
[1733099011787,20.0,236.05,235.96,0.84525123]
[1733099012673,20.0,236.05,235.97,23.776884]
[1733099012989,0.67953434,236.07,235.98,0.84526084]
[1733099013494,0.05901825,236.15,236.04,23.776884]
[1733099013665,0.05901825,236.15,236.06,23.776884]
[1733099014167,0.67953434,236.17,236.06,23.776884]
[1733099014374,0.67953434,236.17,236.04,23.776884]
[1733099014764,20.0,236.15,236.04,23.776884]
[1733099014970,0.67953434,236.14,236.03,23.776884]
[1733099015271,0.67953434,236.14,236.03,36.476884]
[1733099015586,0.67953434,236.14,236.03,55.09374504]
[1733099016165,0.67953434,236.14,236.03,36.476884]
[1733099016386,0.67953434,236.14,236.02,23.776884]
[1733099016586,0.67953434,236.14,236.0,23.776884]
[1733099017092,0.67953434,236.14,236.02,36.476884]
[1733099020472,0.67953434,236.14,236.0,23.776884]
[1733099020672,0.67953434,236.14,235.99,36.476884]
[1733099020985,0.67953434,236.14,235.99,23.776884]
[1733099021173,0.67953434,236.14,236.01,35.41071947]
[1733099021492,0.67953434,236.14,236.03,23.776884]
[1733099021789,0.67953434,236.14,236.01,35.41071947]
[1733099022370,0.67953434,236.14,236.04,35.41071947]
[1733099022692,0.67953434,236.14,236.04,23.776884]
[1733099023490,0.67953434,236.14,236.02,23.776884]
[1733099024169,0.67953434,236.14,236.02,36.476884]
[1733099027603,0.67953434,236.17,236.07,11.63383547]
[1733099027896,15.8436,236.18,236.08,36.25554196]
[1733099028188,15.8436,236.18,236.11,35.41071947]
[1733099028388,15.8436,236.18,236.1,11.63383547]
[1733099028568,15.8436,236.18,236.08,48.95554196]
[1733099028769,15.8436,236.18,236.08,37.32170649]
[1733099029171,15.8436,236.18,236.1,11.63383547]
[1733099029484,15.6783,236.25,236.13,11.63383547]
[1733099029678,0.67953434,236.24,236.12,35.41071947]
[1733099029872,0.67953434,236.24,236.13,12.7]
[1733099030294,0.67953434,236.24,236.13,24.33383547]
[1733099030489,16.35783434,236.25,236.16,35.41071947]
[1733099030691,16.35783434,236.25,236.16,36.476884]
[1733099031904,15.6783,236.25,236.16,36.476884]
[1733099034803,15.6783,236.25,236.16,12.7]
[1733099036993,15.6783,236.25,236.14,24.33383547]
[1733099038010,20.0,236.22,236.11,12.7]
[1733099038702,20.0,236.22,236.12,0.84465052]
[1733099040297,20.0,236.22,236.12,12.47848599]
[1733099040497,20.0,236.22,236.13,11.63383547]
[1733099040702,15.6783,236.25,236.13,11.63383547]
[1733099040703,15.6783,236.25,236.16,11.63383547]
[1733099041009,15.6783,236.25,236.14,13.54463619]
[1733099041209,15.6783,236.25,236.14,12.7]
[1733099041510,15.6783,236.25,236.16,11.63383547]
[1733099041709,15.6783,236.25,236.17,11.63383547]
[1733099042011,15.6783,236.25,236.19,11.63383547]
[1733099042694,0.67953434,236.24,236.15,24.33383547]
[1733099042893,0.67953434,236.24,236.15,12.7]
[1733099043091,0.67953434,236.24,236.14,24.33383547]
[1733099043287,0.67953434,236.24,236.13,11.63383547]
[1733099043493,15.6783,236.25,236.16,11.63383547]
[1733099044009,15.6783,236.25,236.19,11.63383547]
[1733099044218,15.6783,236.25,236.18,11.63383547]
[1733099044395,6.2167,236.32,236.12,10.5878]
[1733099044396,0.67953434,236.47,236.31,12.7]
[1733099044717,0.67953434,236.47,236.36,11.63383547]
[1733099045010,0.67953434,236.49,236.36,11.63383547]
[1733099045190,0.67953434,236.49,236.34,11.63383547]
[1733099045398,0.67953434,236.49,236.34,12.47767061]
[1733099045586,0.67953434,236.49,236.35,11.63383547]
[1733099045787,20.67953434,236.49,236.34,12.47767061]
[1733099045982,20.67953434,236.49,236.33,36.476884]
[1733099045983,20.67953434,236.49,236.32,11.63383547]
[1733099046215,20.67953434,236.49,236.31,25.17768097]
[1733099046409,0.67953434,236.49,236.32,11.63383547]
[1733099047424,15.1055,236.48,236.32,11.63383547]
[1733099047587,0.67953434,236.47,236.32,11.63383547]
[1733099047794,20.0,236.45,236.33,12.47774644]
[1733099047991,0.67953434,236.44,236.34,11.63383547]
[1733099048294,0.67953434,236.44,236.33,12.47774644]
[1733099049208,0.67953434,236.44,236.33,0.84391097]
[1733099049512,0.67953434,236.44,236.33,12.47774644]
[1733099051397,0.67953434,236.44,236.29,12.47775142]
[1733099051608,0.67953434,236.44,236.3,11.63383547]
[1733099051803,0.67953434,236.44,236.31,12.47780396]
[1733099052407,0.67953434,236.44,236.37,11.63383547]
[1733099052598,20.0,236.45,236.38,11.63383547]
[1733099052917,20.0,236.45,236.36,11.63383547]
[1733099053623,20.0,236.45,236.37,11.63383547]